bitfinex-derivatives/quotes_SOLF0:USTF0_20251125
["timestamp","ask_amount","ask_price","bid_price","bid_amount"]
[1764060321773,3.19329849,136.21,136.19,2.26]
[1764060321975,0.05329849,136.21,136.19,2.26]
[1764060322173,3.19329849,136.21,136.19,2.26]
[1764060322475,0.05329849,136.21,136.19,2.26]
[1764060324081,0.05329849,136.21,136.19,8.8706]
[1764060324273,0.05329849,136.21,136.2,2.26]
[1764060326778,102.7372,136.32,136.2,2.26]
[1764060326779,3.14,136.33,136.27,2.21]
[1764060327082,3.14,136.33,136.28,2.21]
[1764060327272,3.14,136.32,136.26,2.21]
[1764060327578,3.19407397,136.3,136.28,0.04929567]
[1764060331684,3.14,136.26,136.19,2.26]
[1764060331984,5.26437382,136.25,136.19,2.26]
[1764060332182,3.14,136.24,136.19,2.26]
[1764060332782,3.1947189,136.23,136.2,0.04762658]
[1764060334277,0.0547189,136.23,136.2,2.30762658]
[1764060335083,0.0547189,136.23,136.2,8.91742658]
[1764060335287,0.0547189,136.23,136.21,2.26]
[1764060337093,3.1947189,136.23,136.21,2.26]
[1764060338185,0.0547189,136.23,136.21,2.26]
[1764060339091,3.1947189,136.23,136.21,2.26]
[1764060339293,3.1947189,136.23,136.2,8.91742658]
[1764060339694,3.1947189,136.23,136.21,2.26]
[1764060341592,3.1947189,136.23,136.2,0.04762658]
[1764060345896,3.1947189,136.23,136.2,8.91772658]
[1764060346097,3.1947189,136.23,136.2,6.65772658]
[1764060346596,3.1947189,136.23,136.2,8.91772658]
[1764060353800,0.0547189,136.23,136.21,2.26]
[1764060353998,0.0547189,136.23,136.22,2.26]
[1764060362500,2.99,136.28,136.22,2.26]
[1764060362805,2.99,136.3,136.24,2.26]
[1764060363708,0.0551511,136.28,136.26,2.30914128]
[1764060363903,3.0451511,136.28,136.26,2.30914128]
[1764060364102,3.0451511,136.28,136.26,8.91634128]
[1764060364301,3.0451511,136.28,136.26,0.04914128]
[1764060365103,3.0451511,136.28,136.26,2.30914128]
[1764060365713,3.0451511,136.28,136.26,8.91634128]
[1764060366012,0.0551511,136.28,136.27,2.26]
[1764060366914,0.0551511,136.28,136.26,6.65634128]
[1764060367113,3.0451511,136.28,136.26,8.91634128]
[1764060367415,3.0451511,136.28,136.26,2.30914128]
[1764060367819,3.0451511,136.28,136.26,0.04914128]
[1764060368416,2.99,136.27,136.26,0.04914128]
[1764060371814,3.0451511,136.28,136.26,2.30914128]
[1764060372015,3.0451511,136.28,136.26,0.04914128]
[1764060373622,2.99,136.27,136.26,0.04914128]
[1764060375422,8.37072053,136.27,136.26,0.04914128]
[1764060375719,2.99,136.27,136.26,0.04914128]
[1764060376714,2.99,136.25,136.21,2.26]
[1764060377512,2.99,136.25,136.21,8.8696]
[1764060377711,3.1662031,136.24,136.22,2.34842572]
[1764060377911,3.1662031,136.24,136.22,0.04842572]
[1764060380019,9.7745031,136.24,136.22,0.04842572]
[1764060380524,3.11,136.23,136.22,0.04842572]
[1764060380926,3.11,136.21,136.17,2.3]
[1764060381126,3.11,136.21,136.15,2.35]
[1764060381322,3.11,136.21,136.16,8.962]
[1764060381715,3.11,136.21,136.17,2.35]
[1764060382026,3.16094395,136.2,136.18,0.04984092]
[1764060397336,0.05094395,136.2,136.19,2.35]
[1764060397528,0.05094395,136.2,136.18,9.01084092]
[1764060397529,3.16094395,136.2,136.18,9.01084092]
[1764060398338,0.05094395,136.2,136.19,2.35]
[1764060401536,3.11,136.25,136.21,2.35]
[1764060402442,3.11,136.24,136.21,2.35]
[1764060402641,3.16581859,136.24,136.21,2.39984438]
[1764060403829,0.05581859,136.24,136.23,2.35]
[1764060404035,3.11,136.29,136.23,2.35]
[1764060404544,3.11,136.29,136.26,2.35]
[1764060404840,3.11,136.29,136.25,6.6077]
[1764060405037,3.31889308,136.32,136.25,6.6077]
[1764060405038,3.11,136.27,136.26,0.05393598]
[1764060412246,3.02942987,136.28,136.26,0.05393598]
[1764060413045,3.02942987,136.28,136.26,2.40393598]
[1764060413646,0.04942987,136.28,136.26,2.40393598]
[1764060414040,3.02942987,136.28,136.26,2.40393598]
[1764060419153,0.04942987,136.28,136.26,9.01113598]
[1764060419360,2.95,136.33,136.27,2.36]
[1764060420650,0.05639676,136.31,136.29,2.4154162]
[1764060421058,0.05639676,136.31,136.3,2.36]
[1764060421960,2.95,136.36,136.32,2.36]
[1764060422859,3.00305629,136.35,136.33,0.05373517]
[1764060423048,3.00305629,136.35,136.33,2.41373517]
[1764060423660,3.00305629,136.35,136.33,0.05373517]
[1764060426859,0.05305629,136.35,136.33,9.01753517]
[1764060427056,0.05305629,136.35,136.34,2.36]
[1764060427555,2.95,136.42,136.37,2.36]
[1764060428061,2.95,136.45,136.39,6.6008]
[1764060428260,2.95,136.45,136.38,2.36]
[1764060428460,2.95,136.42,136.4,0.04896343]
[1764060430465,2.95,136.4,136.32,2.36]
[1764060431267,2.95,136.37,136.32,2.36]
[1764060431462,2.99850517,136.36,136.33,0.05117181]
[1764060435168,0.04850517,136.36,136.33,2.41117181]
[1764060437072,0.04850517,136.36,136.34,2.35]
[1764060439069,0.04850517,136.36,136.35,2.35]
[1764060439270,3.14,136.42,136.36,2.35]
[1764060440176,0.05625691,136.4,136.38,0.04917859]
[1764060440375,0.05625691,136.4,136.38,2.39917859]
[1764060440572,0.05625691,136.4,136.38,9.00047859]
[1764060440878,0.05625691,136.4,136.39,2.35]
[1764060441765,3.14,136.43,136.4,2.35]
[1764060442871,3.14,136.43,136.4,2.39828554]
[1764060443075,3.14,136.43,136.41,6.5999]
[1764060444480,3.14,136.45,136.41,8.9499]
[1764060445078,3.14,136.45,136.42,8.9494]
[1764060445381,3.14,136.49,136.44,2.35]
[1764060445578,3.14,136.49,136.45,2.40454771]
[1764060446283,3.14,136.49,136.45,9.00254771]
[1764060446483,3.14,136.49,136.45,2.40454771]
[1764060447175,2.12049381,136.51,136.45,2.40454771]
[1764060447375,3.14,136.52,136.45,2.40454771]
[1764060448679,3.14,136.5,136.45,0.05454771]
[1764060448879,3.14,136.48,136.45,0.05454771]
[1764060450985,3.14,136.43,136.37,2.41]
[1764060451879,0.04836347,136.41,136.39,0.05046676]
[1764060452583,0.04836347,136.41,136.39,2.46046676]
[1764060454181,3.14,136.5,136.41,2.41]
[1764060455284,3.16446249,136.47,136.44,0.0494427]
[1764060455683,3.14,136.45,136.38,27.59]
[1764060456792,102.6256,136.47,136.38,27.59]
[1764060456793,3.19230043,136.43,136.4,0.05443594]
[1764060457790,3.14,136.49,136.42,2.41]
[1764060457989,3.14,136.49,136.43,2.41]
[1764060458593,3.14,136.49,136.44,9.0084]
[1764060458790,3.16160476,136.48,136.45,0.05199842]
[1764060459885,3.16160476,136.48,136.45,2.46199842]
[1764060460096,0.02160476,136.48,136.45,2.46199842]
[1764060460296,0.02160476,136.48,136.46,2.41]
[1764060460901,0.02160476,136.48,136.46,9.0074]
[1764060465006,3.16160476,136.48,136.46,6.5974]
[1764060466506,4.62160476,136.48,136.45,0.05199842]
[1764060466810,3.14,136.47,136.39,2.41]
[1764060467111,2.9,136.45,136.39,9.0108]
[1764060467809,2.95336156,136.43,136.41,0.05073802]
[1764060469205,0.05336156,136.43,136.42,2.4]
[1764060469404,0.05336156,136.43,136.41,6.65063802]
[1764060471212,0.05336156,136.43,136.42,2.4]
[1764060471606,0.05336156,136.43,136.41,9.05063802]
[1764060471808,0.05336156,136.43,136.42,2.4]
[1764060472712,2.95336156,136.43,136.41,0.05073802]
[1764060478314,2.93,136.42,136.36,6.6021]
[1764060479122,2.93,136.41,136.36,9.0421]
[1764060479319,2.9851718,136.4,136.37,9.09755708]
[1764060479520,0.0551718,136.4,136.38,2.44]
[1764060480224,2.9851718,136.4,136.37,2.49575708]
[1764060480821,2.9851718,136.4,136.37,0.05575708]
[1764060482124,2.93,136.39,136.37,0.05575708]
[1764060483221,2.93,136.36,136.28,2.5]
[1764060483416,2.93,136.35,136.28,2.5]
[1764060483817,2.93,136.35,136.29,2.5]
[1764060484019,127.8654,136.42,136.31,2.5]
[1764060484020,2.93,136.39,136.31,2.5]
[1764060484219,0.05581029,136.36,136.34,0.0548168]
[1764060485321,2.98581029,136.36,136.34,0.0548168]
[1764060485726,0.05581029,136.36,136.34,2.5548168]
[1764060486220,2.98581029,136.36,136.34,0.0548168]
[1764060487619,2.93,136.34,136.28,2.5]
[1764060488421,2.93,136.34,136.28,9.106]
[1764060488625,2.98358578,136.32,136.3,0.04787904]
[1764060498230,2.98358578,136.32,136.3,6.65307904]
[1764060498628,2.97,136.35,136.3,2.54787904]
[1764060498833,2.97,136.35,136.33,6.6038]
[1764060499136,2.97,136.35,136.33,9.1038]
[1764060499637,3.02019662,136.35,136.33,9.1038]
[1764060500039,3.02019662,136.35,136.33,6.6038]
[1764060500430,3.02019662,136.35,136.31,2.5]
[1764060501640,3.02019662,136.35,136.33,6.6037]
[1764060502540,3.02019662,136.35,136.31,2.5]
[1764060503340,3.02019662,136.35,136.33,6.6038]
[1764060504843,3.02019662,136.35,136.31,9.1044]
[1764060505141,3.02019662,136.35,136.31,2.5]
[1764060506041,3.02019662,136.35,136.32,6.6043]
[1764060506840,3.02019662,136.35,136.3,6.65287904]
[1764060507036,3.02019662,136.35,136.3,0.04787904]
[1764060507541,3.02019662,136.35,136.31,6.6048]
[1764060507747,3.02019662,136.35,136.3,2.54787904]
[1764060508333,3.02019662,136.35,136.33,6.6038]
[1764060509648,0.05019662,136.35,136.33,9.1038]
[1764060510038,3.02019662,136.35,136.33,9.1038]
[1764060510233,3.02019662,136.35,136.33,6.6038]
[1764060511345,3.02019662,136.35,136.31,2.5]
[1764060512047,3.02019662,136.35,136.33,6.6038]
[1764060512651,3.02019662,136.35,136.31,6.6044]
[1764060514344,9.62329662,136.35,136.3,0.04787904]
[1764060514645,2.97,136.34,136.3,0.04787904]
[1764060516054,2.97,136.34,136.3,6.65317904]
[1764060518651,2.97,136.34,136.31,6.6047]
[1764060520353,2.97,136.34,136.3,0.04787904]
[1764060520741,2.97,136.33,136.3,0.04787904]
[1764060521661,2.97,136.33,136.3,2.54787904]
[1764060522154,2.97,136.33,136.3,9.15317904]
[1764060523353,0.05019662,136.35,136.31,9.1048]
[1764060523654,3.02019662,136.35,136.31,2.5]
[1764060525151,3.02019662,136.35,136.32,6.6043]
[1764060525354,0.05019662,136.35,136.33,2.5]
[1764060525853,3.02019662,136.35,136.33,6.6038]
[1764060527454,0.05019662,136.35,136.34,2.5]
[1764060531263,3.20019662,136.35,136.33,0.04922557]
[1764060536364,0.05019662,136.35,136.33,2.54922557]
[1764060536570,0.05019662,136.35,136.33,9.15302557]
[1764060537266,3.10019662,136.35,136.33,0.04922557]
[1764060537866,3.10019662,136.35,136.33,2.54922557]
[1764060538066,0.05019662,136.35,136.33,2.54922557]
[1764060539069,0.05019662,136.35,136.33,9.15302557]
[1764060543267,3.10019662,136.35,136.33,6.65302557]
[1764060543871,3.10019662,136.35,136.33,9.15302557]
[1764060544569,3.10019662,136.35,136.33,0.04922557]
[1764060545072,9.70319662,136.35,136.33,0.04922557]
[1764060545277,3.05,136.34,136.33,0.04922557]
[1764060545478,8.38110863,136.34,136.33,0.04922557]
[1764060545974,3.05,136.31,136.26,9.107]
[1764060546170,3.05,136.31,136.26,2.5]
[1764060547178,102.7304,136.33,136.26,2.5]
[1764060547179,3.05,136.29,136.27,0.05027057]
[1764060547971,0.05403395,136.3,136.28,2.5]
[1764060548676,3.05,136.37,136.29,2.5]
[1764060548879,5.3212821,136.36,136.3,2.5]
[1764060549080,3.05,136.37,136.3,2.5]
[1764060549775,0.05475232,136.35,136.32,2.54825167]
[1764060550076,0.05475232,136.35,136.32,9.15245167]
[1764060550871,0.05475232,136.35,136.33,2.5]
[1764060553980,3.10475232,136.35,136.32,9.15245167]
[1764060555375,9.70775232,136.35,136.32,0.04825167]
[1764060555578,8.36846351,136.34,136.32,0.04825167]
[1764060555775,3.05,136.33,136.32,0.04825167]
[1764060558479,3.05,136.33,136.28,2.5]
[1764060558670,2.91,136.32,136.28,2.5]
[1764060559076,2.91,136.31,136.26,6.607]
[1764060559274,2.91,136.31,136.24,11.23055919]
[1764060559480,2.91,136.28,136.26,0.04742964]
[1764060561981,2.91,136.26,136.19,16.17036436]
[1764060562182,2.91,136.26,136.16,18.34302355]
[1764060562183,2.91,136.24,136.16,18.34302355]
[1764060562485,2.91,136.22,136.16,2.55]
[1764060562990,0.04817939,136.2,136.18,0.05255909]
[1764060563584,2.95817939,136.2,136.18,0.05255909]
[1764060564189,2.91,136.19,136.13,2.55]
[1764060564388,2.91,136.18,136.13,2.55]
[1764060565286,2.96429332,136.17,136.14,0.04895184]
[1764060565475,2.96429332,136.17,136.14,2.59895184]
[1764060565675,0.05429332,136.17,136.14,2.59895184]
[1764060566180,0.05429332,136.17,136.15,2.55]
[1764060567287,2.96429332,136.17,136.14,0.04895184]
[1764060569088,2.91,136.16,136.14,0.04895184]
[1764060570280,2.96429332,136.17,136.14,0.04895184]
[1764060570477,2.96429332,136.17,136.14,2.59895184]
[1764060571482,0.05429332,136.17,136.14,2.59895184]
[1764060571687,2.96429332,136.17,136.14,2.59895184]
[1764060572792,2.96429332,136.17,136.01,396.9209]
[1764060572793,4.42429332,136.17,136.03,3.11]
[1764060572989,102.9195,136.08,135.98,3.11]
[1764060573183,308.5765,136.16,135.95,3.11]
[1764060573184,102.9527,136.04,135.95,3.11]
[1764060573379,2.12265919,136.02,135.95,3.11]
[1764060573588,111.70635919,136.02,135.95,3.11]
[1764060573885,111.70635919,136.02,135.91,21.01943528]
[1764060573886,109.5837,136.02,135.91,21.86265919]
[1764060574074,2.17054672,136.0,135.97,0.05284005]
[1764060574280,0.04788753,136.0,135.97,0.05284005]
[1764060574490,2.17054672,136.0,135.97,0.05284005]
[1764060574798,0.04788753,136.0,135.97,0.05284005]
[1764060575297,0.04788753,136.0,135.97,3.11284005]
[1764060575477,0.04788753,136.0,135.97,0.00284005]
[1764060576177,25.26,136.06,135.97,3.11284005]
[1764060576380,25.26,136.06,135.97,3.11]
[1764060576578,25.26,136.11,136.0,3.11]
[1764060576791,25.26,136.11,136.01,3.11]
[1764060577293,0.05045171,136.07,136.05,0.05133672]
[1764060579489,0.05045171,136.07,136.05,3.16133672]
[1764060581588,0.05045171,136.07,136.05,0.05133672]
[1764060584786,0.05045171,136.07,135.99,3.11]
[1764060584787,102.9316,136.06,135.99,3.11]
[1764060585095,102.9392,136.05,135.95,3.11]
[1764060585797,0.05262767,136.01,135.99,0.04848809]
[1764060586193,0.05262767,136.01,135.99,3.15848809]
[1764060586590,6.6158,136.09,136.0,3.11]
[1764060587102,102.9088,136.09,136.0,3.11]
[1764060587596,0.04700881,136.06,136.03,3.10120456]
[1764060596207,0.04700881,136.06,136.03,9.71950456]
[1764060596406,0.04700881,136.06,136.04,3.05]
[1764060597108,0.04700881,136.06,136.03,3.12120456]
[1764060601014,0.04700881,136.06,136.04,3.07]
[1764060601219,5.48322411,136.12,136.04,3.07]
[1764060601416,12.09782411,136.11,136.05,3.07]
[1764060601617,6.6146,136.11,136.05,3.07]
[1764060602220,0.04907271,136.09,136.07,3.12322563]
[1764060603021,6.80038177,136.16,136.07,3.12322563]
[1764060603220,5.39181759,136.15,136.07,3.07]
[1764060603516,5.39181759,136.15,136.05,9.6874]
[1764060603517,120.14589224,136.14,136.05,9.6874]
[1764060603718,102.8866,136.12,136.05,3.07]
[1764060603924,0.04875688,136.1,136.07,0.04699645]
[1764060604427,0.04875688,136.1,136.07,3.11699645]
[1764060605124,5.45595745,136.1,136.07,3.11699645]
[1764060605424,0.04875688,136.1,136.07,3.11699645]
[1764060605813,0.04875688,136.1,136.07,0.04699645]
[1764060606010,6.6156,136.09,136.07,0.04699645]
[1764060607221,5.42799777,136.08,136.07,0.04699645]
[1764060610026,7.55773056,136.08,136.01,3.07]
[1764060610226,8.74683279,136.06,136.01,3.07]
[1764060610725,8.74683279,136.06,136.02,3.07]
[1764060610924,8.74613279,136.08,136.02,3.07]
[1764060611123,6.78679714,136.09,136.05,3.07]
[1764060611124,0.05149467,136.06,136.05,3.07]
[1764060611719,6.78679714,136.11,136.05,9.6873]
[1764060611923,5.43264501,136.1,136.06,3.07]
[1764060612122,6.78679714,136.13,136.06,3.07]
[1764060612333,5.41651893,136.12,136.07,3.07]
[1764060612523,5.41651893,136.11,136.07,3.07]
[1764060612722,0.05048262,136.1,136.09,3.07]
[1764060612923,0.04835509,136.11,136.09,3.07]
[1764060614324,5.40250138,136.1,136.09,3.07]
[1764060614525,5.40250138,136.1,136.08,0.04843536]
[1764060614724,0.04835509,136.11,136.08,3.11843536]
[1764060614725,6.66295509,136.11,136.08,3.11843536]
[1764060614926,10.8741526,136.1,136.08,3.11843536]
[1764060615126,6.66295509,136.11,136.08,3.11843536]
[1764060615327,10.87302385,136.1,136.08,0.04843536]
[1764060615526,6.66295509,136.11,136.08,3.11843536]
[1764060615825,10.87558221,136.1,136.08,3.11843536]
[1764060616128,0.04835509,136.11,136.08,3.11843536]
[1764060616320,10.87851838,136.1,136.08,3.11843536]
[1764060616525,5.40619678,136.09,136.08,3.11843536]
[1764060616928,0.04835509,136.11,136.08,3.11843536]
[1764060617128,10.88349555,136.1,136.08,3.11843536]
[1764060617327,0.04835509,136.11,136.08,3.11843536]
[1764060617534,10.89284989,136.1,136.08,3.11843536]
[1764060617736,0.04835509,136.11,136.08,3.11843536]
[1764060617934,10.89224166,136.1,136.08,3.11843536]
[1764060618134,0.04835509,136.11,136.08,3.11843536]
[1764060618335,5.41050917,136.1,136.08,3.11843536]
[1764060618533,0.04835509,136.11,136.08,3.11843536]
[1764060618830,6.78679714,136.15,136.09,3.05]
[1764060619129,6.78679714,136.18,136.12,3.05]
[1764060619336,5.47965806,136.17,136.13,3.05]
[1764060619525,6.78679714,136.21,136.13,3.05]
[1764060619727,5.48390372,136.2,136.15,3.05]
[1764060619935,5.48390372,136.19,136.15,3.05]
[1764060620136,5.48390372,136.18,136.16,0.05514649]
[1764060620336,0.05407593,136.19,136.16,0.05514649]
[1764060620534,5.47601744,136.18,136.16,0.05514649]
[1764060620838,0.05407593,136.19,136.16,0.05514649]
[1764060621040,5.47589205,136.18,136.16,0.05514649]
[1764060621243,0.05407593,136.19,136.16,0.05514649]
[1764060621436,5.47395489,136.18,136.16,0.05514649]
[1764060621636,0.05407593,136.19,136.16,0.05514649]
[1764060622231,6.66487593,136.19,136.16,0.05514649]
[1764060623835,0.05407593,136.19,136.16,0.05514649]
[1764060624836,6.66507593,136.19,136.16,0.05514649]
[1764060626838,0.05407593,136.19,136.16,3.10514649]
[1764060628537,0.05407593,136.19,136.17,3.05]
[1764060630344,0.05407593,136.19,136.16,3.10514649]
[1764060633042,6.6081,136.25,136.18,3.05]
[1764060634042,0.05016639,136.23,136.2,3.09888646]
[1764060634437,102.85696639,136.23,136.2,0.04888646]
[1764060634642,6.6096,136.22,136.2,0.04888646]
[1764060640149,31.8496,136.22,136.2,0.04888646]
[1764060643350,6.6116,136.17,136.11,34.6642]
[1764060643554,6.6116,136.17,136.12,3.05]
[1764060644357,0.05591085,136.16,136.13,3.09656887]
[1764060645243,0.05591085,136.16,136.15,3.05]
[1764060654960,0.05591085,136.16,136.14,3.13]
[1764060658464,0.05591085,136.16,136.14,9.743]
[1764060658658,424.70019565,136.27,136.15,2.9]
[1764060658659,5.43649095,136.21,136.15,2.9]
[1764060658869,102.777,136.27,136.17,2.9]
[1764060658870,109.56379714,136.27,136.17,2.9]
[1764060659165,5.4385662,136.26,136.21,2.9]
[1764060659366,5.43986357,136.27,136.21,2.9]
[1764060659665,0.05312597,136.25,136.23,2.94800071]
[1764060660356,3.32233133,136.31,136.23,2.94800071]
[1764060660559,5.43490541,136.3,136.23,2.94800071]
[1764060660759,102.774,136.27,136.23,0.04800071]
[1764060660957,106.09223133,136.28,136.23,0.04800071]
[1764060661362,5.48678209,136.27,136.23,0.04800071]
[1764060661560,0.04953832,136.27,136.23,0.04800071]
[1764060661756,6.608,136.25,136.23,0.04800071]
[1764060662063,102.8038,136.23,136.17,2.9]
[1764060662366,111.56997678,136.22,136.12,2.9]
[1764060662561,5.43624545,136.21,136.12,2.9]
[1764060662871,0.04731708,136.18,136.15,0.05038592]
[1764060663064,0.04731708,136.18,136.15,2.95038592]
[1764060663558,0.04731708,136.18,136.15,0.05038592]
[1764060665058,6.65861708,136.18,136.15,0.05038592]
[1764060665763,6.65861708,136.18,136.15,2.95038592]
[1764060666459,6.65861708,136.18,136.15,0.05038592]
[1764060667867,6.6118,136.17,136.15,0.05038592]
[1764060668866,5.4221966,136.16,136.15,0.05038592]
[1764060671069,5.4221966,136.16,136.07,2.9]
[1764060671269,6.6142,136.12,136.07,2.9]
[1764060671567,102.8738,136.14,136.07,2.9]
[1764060671872,6.6148,136.11,136.07,2.9]
[1764060672066,0.05512817,136.1,136.08,0.0492562]
[1764060672872,0.05512817,136.1,136.07,2.9]
[1764060673873,0.05512817,136.1,136.07,2.9510896]
[1764060674168,0.05512817,136.1,136.07,0.0510896]
[1764060674375,6.67032817,136.1,136.07,0.0510896]
[1764060675479,0.05512817,136.1,136.07,2.9510896]
[1764060676471,0.05512817,136.1,136.09,2.9]
[1764060676872,31.8528,136.15,136.09,2.9]
[1764060677073,102.8454,136.18,136.1,3.02]
[1764060677278,6.6119,136.17,136.1,3.02]
[1764060677462,25.24,136.18,136.1,3.02]
[1764060677975,0.04651316,136.15,136.14,3.02]
[1764060678273,0.04651316,136.15,136.13,3.06866327]
[1764060679975,102.8718,136.14,136.07,28.02]
[1764060680180,25.26,136.13,136.07,3.02]
[1764060680480,25.26,136.13,136.03,3.02]
[1764060680676,25.26,136.13,135.99,3.02]
[1764060680677,102.909,136.09,135.99,3.02]
[1764060680975,0.05166754,136.05,136.03,0.05151727]
[1764060681178,0.04635265,136.05,136.03,0.05151727]
[1764060683179,6.6191,136.02,135.95,3.02]
[1764060683389,6.6191,136.02,135.96,3.02]
[1764060683775,6.6196,136.01,135.94,25.26]
[1764060683980,6.6196,136.01,135.95,3.02]
[1764060684180,0.05435359,135.99,135.97,0.04928658]
[1764060684380,0.05368452,135.99,135.97,0.04928658]
[1764060684682,0.05368452,135.99,135.97,3.06928658]
[1764060686681,0.05368452,135.99,135.97,0.04928658]
[1764060688287,0.05368452,135.99,135.97,3.06928658]
[1764060689691,107.98029685,136.1,135.98,3.02]
[1764060689887,25.28,136.09,135.98,3.02]
[1764060690088,128.192,136.09,136.0,3.02]
[1764060690792,0.05609365,136.06,136.03,3.07553035]
[1764060692693,25.28,136.13,136.03,3.07553035]
[1764060692880,25.28,136.13,136.02,102.9583]
[1764060692881,128.1618,136.13,136.05,3.02]
[1764060693897,0.05284006,136.1,136.08,0.0547617]
[1764060694491,6.66824006,136.1,136.08,0.0547617]
[1764060696681,6.6167,136.07,136.01,3.02]
[1764060697296,6.6172,136.06,136.01,3.02]
[1764060697490,128.2165,136.06,135.96,3.02]
[1764060697696,0.05082489,136.02,136.0,0.05265229]
[1764060699293,6.66992489,136.02,136.0,0.05265229]
[1764060700190,6.66992489,136.02,136.0,3.07265229]
[1764060700389,0.05082489,136.02,136.0,3.07265229]
[1764060703602,0.00082489,136.02,136.0,3.07265229]
[1764060708498,0.00082489,136.02,136.01,3.1]
[1764060714801,0.00082489,136.02,136.0,3.15265229]
[1764060715302,0.00082489,136.02,136.0,0.05265229]
[1764060716010,6.61992489,136.02,136.0,0.05265229]
[1764060716712,0.00082489,136.02,136.0,3.15265229]
[1764060717916,102.909,136.09,136.01,3.1]
[1764060718517,6.617,136.06,136.01,3.1]
[1764060718817,0.00065727,136.05,136.03,3.1]
[1764060719020,102.8819,136.13,136.03,3.1]
[1764060719708,109.63169714,136.18,136.07,3.1]
[1764060720013,0.0539707,136.14,136.12,3.1]
[1764060721717,6.6108,136.19,136.12,3.1]
[1764060721919,102.8286,136.2,136.12,3.1]
[1764060722218,102.8185,136.21,136.12,28.1]
[1764060722422,102.8185,136.21,136.13,3.14]
[1764060722723,0.05084114,136.18,136.16,0.048505]
[1764060724516,6.66234114,136.18,136.16,0.048505]
[1764060725011,102.8561,136.16,136.1,3.14]
[1764060725216,102.8648,136.15,136.1,3.14]
[1764060725715,102.8791,136.13,136.06,3.14]
[1764060725921,102.94857499,136.11,136.08,0.05605162]
[1764060726219,102.94694229,136.11,136.08,0.05144356]
[1764060726421,6.6158,136.09,136.08,0.05144356]
[1764060728417,6.66774229,136.11,136.08,0.05144356]
[1764060728724,0.05304229,136.11,136.08,3.19144356]
[1764060730019,6.66784229,136.11,136.08,0.05144356]
[1764060731125,0.05304229,136.11,136.08,3.19144356]
[1764060731626,6.66784229,136.11,136.08,3.19144356]
[1764060731926,102.9023,136.1,136.08,0.05144356]
[1764060732422,109.5176,136.1,136.08,0.05144356]
[1764060733422,0.05304229,136.11,136.08,0.05144356]
[1764060733616,25.33304229,136.11,136.08,0.05144356]
[1764060734024,31.94784229,136.11,136.08,0.05144356]
[1764060739320,6.6154,136.1,136.08,0.05144356]
[1764060740218,0.05304229,136.11,136.08,3.17144356]
[1764060741332,6.66774229,136.11,136.08,0.05144356]
[1764060742026,6.6153,136.1,136.08,0.05144356]
[1764060742216,102.9017,136.1,136.02,3.12]
[1764060743031,6.6163,136.08,136.03,3.12]
[1764060743218,0.05636959,136.07,136.04,3.16881378]
[1764060743619,0.05636959,136.07,136.04,0.04881378]
[1764060744928,6.6172,136.06,136.04,0.04881378]
[1764060746920,0.05636959,136.07,136.04,3.16881378]
[1764060749523,0.05636959,136.07,136.04,0.04881378]
[1764060750728,6.6171,136.06,136.04,0.04881378]
[1764060752528,0.05636959,136.07,136.04,3.16881378]
[1764060755025,0.05636959,136.07,136.04,9.78661378]
[1764060755221,0.05636959,136.07,136.05,3.12]
[1764060755534,0.05636959,136.07,136.04,0.04881378]
[1764060755736,0.05636959,136.07,136.04,3.16881378]
[1764060761537,0.05636959,136.07,136.05,3.12]
[1764060762437,0.05636959,136.07,136.05,9.7374]
[1764060762645,0.05636959,136.07,136.06,3.12]
[1764060762837,6.6144,136.12,136.07,3.12]
[1764060763139,15.61671908,136.17,136.07,3.12]
[1764060763339,5.40732948,136.16,136.07,3.12]
[1764060763742,5.40732948,136.16,136.06,102.9279]
[1764060763743,6.6128,136.15,136.09,9.7353]
[1764060763939,0.05354975,136.13,136.11,0.05255302]
[1764060764641,6.78679714,136.2,136.11,3.17255302]
[1764060764850,5.40887922,136.2,136.12,3.12]